fUST/lending_fUST_20250702
["ID","MTS","AMOUNT","RATE_DAILY","PERIOD"]
[368979653,1751421046826,-159.3450821,0.00024384,2]
[368979654,1751421046835,-157.7614321,0.00024384,2]
[368979655,1751421046846,-1000.0,0.000245,2]
[368979656,1751421046856,-1000.0,0.000245,2]
[368979657,1751421046865,-1000.0,0.000245,2]
[368979658,1751421046874,-1000.0,0.000245,2]
[368979659,1751421046884,-1000.0,0.000245,2]
[368979660,1751421046894,-1000.0,0.000245,2]
[368979661,1751421046904,-1000.0,0.000245,2]
[368979662,1751421046913,-1000.0,0.000245,2]
[368979663,1751421046923,-1000.0,0.000245,2]
[368979664,1751421046932,-1000.0,0.000245,2]
[368979665,1751421046942,-622.41549502,0.00024521,11]
[368979666,1751421046953,-2601.65164662,0.00024532,2]
[368979667,1751421046963,-300.0,0.00024657,4]
[368979668,1751421046973,-212.8386663,0.00024662,7]
[368979669,1751421046986,-2601.65164663,0.00024662,2]
[368979670,1751421046997,-407.852,0.00024676,2]
[368979671,1751421047007,-666.618711,0.00024715,4]
[368979672,1751421047018,-622.41549502,0.00024797,11]
[368979673,1751421047029,-364.13,0.000248,7]
[368979674,1751421047039,-326.66189253,0.000248,2]
[368979675,1751421047049,-223.0315306,0.00024873,2]
[368979676,1751421047061,-1000.0,0.00024876,2]
[368979677,1751421047072,-1000.0,0.00024876,2]
[368979678,1751421047083,-1000.0,0.00024876,2]
[368979679,1751421047093,-1000.0,0.00024876,2]
[368979680,1751421047102,-1000.0,0.00024876,2]
[368979681,1751421047113,-533.27159763,0.00024876,2]
[368979682,1751421047123,-326.66189253,0.0002489,2]
[368979683,1751421047132,-122106.253,0.00024899,7]
[368979684,1751421047142,-3468.26,0.000249,7]
[368979685,1751421047151,-127469.61769599,0.000249,2]
[368979686,1751421048089,-160.90830642,0.0001691,2]
[368979687,1751421048102,-299.09169358,0.0001691,2]
[368979688,1751421048112,-460.0,0.00017184,2]
[368979689,1751421048122,-460.0,0.00017458,2]
[368979690,1751421048132,-314.94,0.00017732,2]
[368979691,1751421048142,-400.94,0.0002199,10]
[368979692,1751421048152,-366.3581911,0.00024247,2]
[368979693,1751421048162,-4874.30011532,0.000249,2]
[368979694,1751421048489,-7342.12734,0.000249,2]
[368979697,1751421107272,267.667675,0.00013699,2]
[368979698,1751421292768,901.81620904,0.000272,120]
[368979699,1751421316700,352.38,0.000265,120]
[368979700,1751421626854,-300.0,0.0001681,2]
[368979702,1751421886509,17005.56796933,0.00016188,2]
[368979703,1751421886534,7894.43203067,0.00016188,2]
[368979704,1751421957991,-33.0,0.0001681,2]
[368979705,1751421958013,-148.9795373,0.00016909,2]
[368979707,1751422042622,11629.2074045,0.00025145,60]
[368979710,1751422119156,411.646364,0.00016234,2]
[368979711,1751422150537,1130.08226778,0.00025145,60]
[368979721,1751422231952,-151.0,0.00016909,2]
[368979722,1751422231963,-300.0,0.00016909,2]
[368979723,1751422231974,-1200.0,0.00016909,2]
[368979724,1751422231984,-340.80365438,0.0001691,2]
[368979725,1751422231994,-460.0,0.0001691,2]
[368979726,1751422232004,-460.0,0.0001691,2]
[368979727,1751422232014,-460.0,0.0001691,2]
[368979728,1751422232024,-460.0,0.0001691,2]
[368979729,1751422232033,-460.0,0.0001691,2]
[368979730,1751422232043,-333.17937362,0.0001691,2]
[368979731,1751422232055,-510.69062638,0.0001691,2]
[368979732,1751422232064,-460.0,0.0001691,2]
[368979733,1751422232074,-4359.04163032,0.0001691,2]
[368979734,1751422232083,-372.18106735,0.00017084,2]
[368979735,1751422232093,-460.0,0.00017134,2]
[368979736,1751422232102,-777.9,0.00017134,2]
[368979737,1751422232112,-372.03288806,0.00017134,2]
[368979747,1751422237901,-516.33711194,0.00017134,2]
[368979748,1751422238062,-320.31860826,0.00017134,2]
[368979749,1751422238072,-460.0,0.00017134,2]
[368979750,1751422238082,-460.0,0.00017134,2]
[368979751,1751422238091,-460.0,0.00017134,2]
[368979752,1751422238101,-460.0,0.00017134,2]
[368979753,1751422238110,-460.0,0.00017134,2]
[368979754,1751422238121,-460.0,0.00017134,2]
[368979755,1751422238131,-460.0,0.00017134,2]
[368979756,1751422238140,-460.0,0.00017134,2]
[368979757,1751422238149,-512.5,0.00017134,2]
[368979758,1751422238159,-460.0,0.00017134,2]
[368979759,1751422238167,-693.01,0.00017134,2]
[368979760,1751422238178,-460.0,0.00017134,2]
[368979761,1751422238187,-460.0,0.00017134,2]
[368979762,1751422238196,-460.0,0.00017134,2]
[368979763,1751422238205,-727.6,0.00017134,2]
[368979764,1751422238215,-460.0,0.00017134,2]
[368979765,1751422238224,-471.694793,0.00017135,2]
[368979766,1751422238233,-460.0,0.00017135,2]
[368979767,1751422238242,-460.0,0.00017135,2]
[368979768,1751422238251,-505.57906925,0.00017135,2]
[368979769,1751422238261,-237.44283939,0.00017135,2]
[368979770,1751422238271,-460.0,0.00017135,2]
[368979771,1751422238280,-460.0,0.00017135,2]
[368979772,1751422238290,-467.54342562,0.00017135,2]
[368979773,1751422238299,-460.0,0.00017135,2]
[368979774,1751422238308,-438.96,0.00017135,2]
[368979775,1751422238317,-344.26,0.00017135,2]
[368979776,1751422238327,-460.0,0.00017135,2]
[368979777,1751422238336,-460.0,0.00017135,2]
[368979778,1751422238345,-297.8880217,0.00017135,2]
[368979779,1751422238358,-460.0,0.00017135,2]
[368979780,1751422238367,-1104.28,0.00017135,2]
[368979781,1751422238376,-460.0,0.00017135,2]
[368979782,1751422238385,-460.0,0.00017135,2]
[368979783,1751422238395,-460.0,0.00017135,2]
[368979784,1751422238404,-460.0,0.00017135,2]
[368979785,1751422238414,-460.0,0.00017135,2]
[368979786,1751422238426,-460.0,0.00017135,2]
[368979787,1751422238435,-255.4557346,0.00017135,2]
[368979788,1751422238445,-460.0,0.00017184,2]
[368979789,1751422238454,-460.0,0.00017184,2]
[368979790,1751422238463,-460.0,0.00017184,2]
[368979791,1751422238472,-460.0,0.00017184,2]
[368979792,1751422238481,-843.87,0.00017184,2]
[368979793,1751422238491,-460.0,0.00017184,2]
[368979794,1751422238500,-777.9,0.00017408,2]
[368979795,1751422238509,-888.37,0.00017408,2]
[368979796,1751422238519,-460.0,0.00017408,2]
[368979797,1751422238528,-460.0,0.00017408,2]
[368979798,1751422238538,-460.0,0.00017408,2]
[368979799,1751422238548,-460.0,0.00017408,2]
[368979800,1751422238558,-168.57,0.00017408,2]
[368979801,1751422238567,-460.0,0.00017408,2]
[368979802,1751422238577,-460.0,0.00017408,2]
[368979803,1751422238587,-512.5,0.00017408,2]
[368979804,1751422238597,-460.0,0.00017408,2]
[368979805,1751422238606,-693.01,0.00017408,2]
[368979806,1751422238615,-460.0,0.00017408,2]
[368979807,1751422238625,-460.0,0.00017408,2]
[368979808,1751422238635,-460.0,0.00017408,2]
[368979809,1751422238644,-727.6,0.00017408,2]
[368979810,1751422238654,-460.0,0.00017408,2]
[368979811,1751422238666,-208.85,0.00017409,2]
[368979812,1751422238675,-225.71,0.00017409,2]
[368979813,1751422238686,-460.0,0.00017409,2]
[368979814,1751422238695,-460.0,0.00017409,2]
[368979815,1751422238705,-460.0,0.00017409,2]
[368979816,1751422238716,-1104.28,0.00017409,2]
[368979817,1751422238726,-460.0,0.00017409,2]
[368979818,1751422238735,-460.0,0.00017409,2]
[368979819,1751422238745,-460.0,0.00017409,2]
[368979820,1751422238754,-460.0,0.00017409,2]
[368979821,1751422238763,-460.0,0.00017409,2]
[368979822,1751422238773,-164.86555703,0.00017457,2]
[368979823,1751422238782,-275.4945601,0.00017457,2]
[368979824,1751422238792,-613.60365781,0.00017457,2]
[368979825,1751422238801,-469.61706941,0.00017458,2]
[368979826,1751422238810,-460.0,0.00017458,2]
[368979827,1751422238820,-460.0,0.00017458,2]
[368979828,1751422238830,-460.0,0.00017458,2]
[368979829,1751422238839,-843.87,0.00017458,2]
[368979830,1751422238849,-460.0,0.00017458,2]
[368979831,1751422238860,-777.9,0.00017682,2]
[368979832,1751422238870,-888.37,0.00017682,2]
[368979833,1751422238881,-460.0,0.00017682,2]
[368979834,1751422238890,-460.0,0.00017682,2]
[368979835,1751422238901,-460.0,0.00017682,2]
[368979836,1751422238911,-460.0,0.00017682,2]
[368979837,1751422238920,-460.0,0.00017682,2]
[368979838,1751422238930,-460.0,0.00017682,2]
[368979839,1751422238940,-512.5,0.00017682,2]
[368979840,1751422238950,-460.0,0.00017682,2]
[368979841,1751422238959,-693.01,0.00017682,2]
[368979842,1751422238970,-460.0,0.00017682,2]
[368979843,1751422238980,-460.0,0.00017682,2]
[368979844,1751422238989,-460.0,0.00017682,2]
[368979845,1751422238998,-727.6,0.00017682,2]
[368979846,1751422239008,-269.82,0.00017682,2]
[368979847,1751422239017,-460.0,0.00017683,2]
[368979848,1751422239026,-460.0,0.00017683,2]
[368979849,1751422239035,-460.0,0.00017683,2]
[368979850,1751422239046,-1104.28,0.00017683,2]
[368979851,1751422239055,-168.34261974,0.00017683,2]
[368979852,1751422239065,-460.0,0.00017683,2]
[368979853,1751422239079,-460.0,0.00017683,2]
[368979854,1751422239089,-460.0,0.00017683,2]
[368979855,1751422239099,-460.0,0.00017683,2]
[368979856,1751422239110,-460.0,0.00017732,2]
[368979857,1751422239121,-460.0,0.00017732,2]
[368979858,1751422239131,-527.11770838,0.00017732,2]
[368979859,1751422239140,-843.87,0.00017732,2]
[368979860,1751422239151,-460.0,0.00017732,2]
[368979861,1751422239161,-337.18015701,0.00017899,2]
[368979862,1751422239170,-777.9,0.00017956,2]
[368979863,1751422239180,-888.37,0.00017956,2]
[368979864,1751422239191,-460.0,0.00017956,2]
[368979865,1751422239200,-460.0,0.00017956,2]
[368979866,1751422239210,-460.0,0.00017956,2]
[368979867,1751422239219,-460.0,0.00017956,2]
[368979868,1751422239229,-460.0,0.00017956,2]
[368979869,1751422239239,-460.0,0.00017956,2]
[368979870,1751422239248,-460.0,0.00017956,2]
[368979871,1751422239259,-460.0,0.00017956,2]
[368979872,1751422239268,-460.0,0.00017956,2]
[368979873,1751422239277,-512.5,0.00017956,2]
[368979874,1751422239288,-1104.28,0.00017956,2]
[368979875,1751422239298,-460.0,0.00017956,2]
[368979876,1751422239308,-460.0,0.00017956,2]
[368979877,1751422239318,-693.01,0.00017956,2]
[368979878,1751422239328,-460.0,0.00017956,2]
[368979879,1751422239338,-460.0,0.00017956,2]
[368979880,1751422239349,-460.0,0.00017956,2]
[368979881,1751422239360,-460.0,0.00017956,2]
[368979882,1751422239370,-460.0,0.00017956,2]
[368979883,1751422239379,-727.6,0.00017956,2]
[368979884,1751422239389,-460.0,0.00017956,2]
[368979885,1751422239399,-460.0,0.00018006,2]
[368979886,1751422239410,-460.0,0.00018006,2]
[368979887,1751422239419,-843.87,0.00018006,2]
[368979888,1751422239431,-460.0,0.00018006,2]
[368979889,1751422239441,-703.99782791,0.000181,2]
[368979890,1751422239451,-151.38835165,0.00018121,2]
[368979891,1751422239460,-151.0,0.00018121,2]
[368979892,1751422239470,-151.51713372,0.00018121,2]
[368979893,1751422239479,-151.0,0.00018121,2]
[368979894,1751422239488,-151.0,0.00018121,2]
[368979895,1751422239498,-151.45023143,0.00018121,2]
[368979896,1751422239508,-151.0,0.00018121,2]
[368979897,1751422239518,-151.0,0.00018148,2]
[368979898,1751422239529,-151.0,0.00018148,2]
[368979899,1751422239539,-151.0,0.00018148,2]
[368979900,1751422239550,-151.0,0.00018148,2]
[368979901,1751422239560,-199.01402259,0.00018176,2]
[368979902,1751422239569,-198.57592278,0.00018176,2]
[368979903,1751422239579,-199.87903247,0.00018176,2]
[368979904,1751422239589,-199.39485306,0.00018176,2]
[368979905,1751422239598,-703.99782774,0.00018176,2]
[368979906,1751422239608,-372.18106734,0.00018221,2]
[368979908,1751422239618,-777.9,0.0001823,2]
[368979910,1751422239629,-888.37,0.0001823,2]
[368979912,1751422239639,-460.0,0.0001823,2]
[368979914,1751422239650,-460.0,0.0001823,2]
[368979916,1751422239660,-460.0,0.0001823,2]
[368979918,1751422239669,-460.0,0.0001823,2]
[368979920,1751422239679,-439.41,0.0001823,2]
[368979922,1751422239689,-460.0,0.0001823,2]
[368979924,1751422239699,-460.0,0.0001823,2]
[368979926,1751422239708,-460.0,0.0001823,2]
[368979928,1751422239718,-460.0,0.0001823,2]
[368979930,1751422239727,-512.5,0.0001823,2]
[368979932,1751422239737,-1104.28,0.0001823,2]
[368979934,1751422239747,-460.0,0.0001823,2]
[368979936,1751422239756,-460.0,0.0001823,2]
[368979938,1751422239766,-693.01,0.0001823,2]
[368979940,1751422239777,-460.0,0.0001823,2]
[368979942,1751422239788,-460.0,0.0001823,2]
[368979943,1751422239799,-460.0,0.0001823,2]
[368979946,1751422239810,-460.0,0.0001823,2]
[368979947,1751422239821,-475.71233872,0.0001823,2]
[368979949,1751422239831,-727.6,0.0001823,2]
[368979951,1751422239842,-460.0,0.0001823,2]
[368979953,1751422239852,-460.0,0.0001828,2]
[368979956,1751422239863,-460.0,0.0001828,2]
[368979957,1751422239875,-843.87,0.0001828,2]
[368979959,1751422239885,-460.0,0.0001828,2]
[368979961,1751422239895,-703.99782774,0.00018452,2]
[368979963,1751422239906,-420.0,0.0001847,2]
[368979965,1751422239916,-777.9,0.00018504,2]
[368979967,1751422239926,-888.37,0.00018504,2]
[368979969,1751422239936,-460.0,0.00018504,2]
[368979971,1751422239947,-460.0,0.00018504,2]
[368979973,1751422239958,-469.20878253,0.00018504,2]
[368979975,1751422239968,-460.0,0.00018504,2]
[368979977,1751422239978,-262.85960313,0.00018504,2]
[368979979,1751422239989,-460.0,0.00018504,2]
[368979981,1751422239999,-460.0,0.00018504,2]
[368979983,1751422240010,-460.0,0.00018504,2]
[368979985,1751422240023,-512.5,0.00018504,2]
[368979987,1751422240033,-1104.28,0.00018504,2]
[368979989,1751422240043,-358.95,0.00018504,2]
[368979991,1751422240054,-460.0,0.00018504,2]
[368979993,1751422240064,-693.01,0.00018504,2]
[368979995,1751422240074,-460.0,0.00018504,2]
[368979997,1751422240083,-460.0,0.00018504,2]
[368979999,1751422240095,-460.0,0.00018504,2]
[368980001,1751422240105,-460.0,0.00018504,2]
[368980003,1751422240114,-727.6,0.00018504,2]
[368980005,1751422240125,-460.0,0.00018504,2]
[368980007,1751422240134,-460.0,0.00018554,2]
[368980009,1751422240145,-460.0,0.00018554,2]
[368980011,1751422240155,-843.87,0.00018554,2]
[368980013,1751422240166,-460.0,0.00018554,2]
[368980015,1751422240176,-770.0,0.00018562,2]
[368980017,1751422240186,-17512.7594484,0.00018589,2]
[368980019,1751422240196,-230.34465076,0.00018723,2]
[368980021,1751422240206,-215.04179405,0.00018723,2]
[368980023,1751422240217,-837.27862799,0.00018723,2]
[368980025,1751422240227,-160.0,0.00018723,2]
[368980027,1751422240237,-703.99782774,0.00018728,2]
[368980029,1751422240247,-777.9,0.00018778,2]
[368980031,1751422240257,-888.37,0.00018778,2]
[368980033,1751422240267,-460.0,0.00018778,2]
[368980035,1751422240279,-460.0,0.00018778,2]
[368980037,1751422240289,-582.37305728,0.00018778,2]
[368980040,1751422240299,-460.0,0.00018778,2]
[368980042,1751422240309,-512.5,0.00018778,2]
[368980044,1751422240318,-1104.28,0.00018778,2]
[368980045,1751422240328,-460.0,0.00018778,2]
[368980047,1751422240339,-693.01,0.00018778,2]
[368980050,1751422240353,-460.0,0.00018778,2]
[368980052,1751422240362,-460.0,0.00018778,2]
[368980054,1751422240372,-460.0,0.00018778,2]
[368980056,1751422240381,-460.0,0.00018778,2]
[368980058,1751422240392,-727.6,0.00018778,2]
[368980060,1751422240403,-460.0,0.00018778,2]
[368980062,1751422240412,-460.0,0.00018828,2]
[368980064,1751422240423,-460.0,0.00018828,2]
[368980066,1751422240433,-843.87,0.00018828,2]
[368980068,1751422240443,-460.0,0.00018828,2]
[368980070,1751422240452,-703.99782774,0.00019003,2]
[368980072,1751422240463,-777.9,0.00019052,2]
[368980074,1751422240474,-888.37,0.00019052,2]
[368980076,1751422240484,-460.0,0.00019052,2]
[368980078,1751422240494,-460.0,0.00019052,2]
[368980080,1751422240504,-460.0,0.00019052,2]
[368980082,1751422240515,-512.5,0.00019052,2]
[368980084,1751422240527,-1104.28,0.00019052,2]
[368980086,1751422240538,-460.0,0.00019052,2]
[368980088,1751422240549,-693.01,0.00019052,2]
[368980090,1751422240560,-460.0,0.00019052,2]
[368980092,1751422240570,-460.0,0.00019052,2]
[368980094,1751422240581,-460.0,0.00019052,2]
[368980096,1751422240592,-449.43368127,0.00019052,2]
[368980098,1751422240602,-727.6,0.00019052,2]
[368980100,1751422240615,-460.0,0.00019052,2]
[368980102,1751422240624,-460.0,0.00019102,2]
[368980104,1751422240635,-460.0,0.00019102,2]
[368980106,1751422240645,-843.87,0.00019102,2]
[368980108,1751422240656,-460.0,0.00019102,2]
[368980110,1751422240666,-176.709608,0.00019178,2]
[368980122,1751422240778,-703.99782774,0.00019279,2]
[368980125,1751422240788,-777.9,0.00019326,2]
[368980126,1751422240797,-888.37,0.00019326,2]
[368980128,1751422240807,-460.0,0.00019326,2]
[368980130,1751422240817,-460.0,0.00019326,2]
[368980133,1751422240827,-603.69535192,0.00019326,2]
[368980135,1751422240837,-1104.28,0.00019326,2]
[368980136,1751422240846,-512.5,0.00019326,2]
[368980139,1751422240857,-460.0,0.00019326,2]
[368980141,1751422240867,-693.01,0.00019326,2]
[368980143,1751422240876,-265.99905533,0.00019326,2]
[368980145,1751422240886,-460.0,0.00019326,2]
[368980146,1751422240896,-460.0,0.00019326,2]
[368980149,1751422240906,-727.6,0.00019326,2]
[368980151,1751422240916,-460.0,0.00019326,2]
[368980153,1751422240925,-372.18106734,0.00019359,2]
[368980155,1751422240935,-460.0,0.00019376,2]
[368980157,1751422240945,-460.0,0.00019376,2]
[368980159,1751422240955,-843.87,0.00019376,2]
[368980161,1751422240965,-460.0,0.00019376,2]
[368980163,1751422240975,-703.99782774,0.00019555,2]
[368980165,1751422240984,-777.9,0.000196,2]
[368980166,1751422240993,-888.37,0.000196,2]
[368980168,1751422241003,-460.0,0.000196,2]
[368980170,1751422241012,-460.0,0.000196,2]
[368980172,1751422241023,-1104.28,0.000196,2]
[368980174,1751422241032,-512.5,0.000196,2]
[368980176,1751422241043,-460.0,0.000196,2]
[368980178,1751422241053,-693.01,0.000196,2]
[368980180,1751422241063,-460.0,0.000196,2]
[368980182,1751422241073,-460.0,0.000196,2]
[368980184,1751422241082,-727.6,0.000196,2]
[368980186,1751422241092,-460.0,0.000196,2]
[368980188,1751422241102,-460.0,0.0001965,2]
[368980190,1751422241112,-460.0,0.0001965,2]
[368980192,1751422241121,-843.87,0.0001965,2]
[368980194,1751422241131,-460.0,0.0001965,2]
[368980196,1751422241140,-703.99782774,0.00019831,2]
[368980198,1751422241150,-777.9,0.00019874,2]
[368980200,1751422241160,-888.37,0.00019874,2]
[368980202,1751422241169,-460.0,0.00019874,2]
[368980204,1751422241178,-460.0,0.00019874,2]
[368980206,1751422241188,-1104.28,0.00019874,2]
[368980208,1751422241198,-512.5,0.00019874,2]
[368980210,1751422241207,-460.0,0.00019874,2]
[368980212,1751422241217,-693.01,0.00019874,2]
[368980214,1751422241227,-460.0,0.00019874,2]
[368980216,1751422241238,-460.0,0.00019874,2]
[368980219,1751422241248,-727.6,0.00019874,2]
[368980221,1751422241258,-460.0,0.00019874,2]
[368980223,1751422241267,-460.0,0.00019924,2]
[368980225,1751422241277,-460.0,0.00019924,2]
[368980227,1751422241287,-843.87,0.00019924,2]
[368980229,1751422241296,-460.0,0.00019924,2]
[368980231,1751422241306,-207.91288834,0.00020061,2]
[368980233,1751422241315,-703.99782774,0.00020107,2]
[368980234,1751422241324,-777.9,0.00020148,2]
[368980237,1751422241334,-888.37,0.00020148,2]
[368980239,1751422241344,-460.0,0.00020148,2]
[368980241,1751422241358,-460.0,0.00020148,2]
[368980243,1751422241368,-1104.28,0.00020148,2]
[368980245,1751422241378,-512.5,0.00020148,2]
[368980247,1751422241387,-460.0,0.00020148,2]
[368980248,1751422241397,-693.01,0.00020148,2]
[368980250,1751422241410,-460.0,0.00020148,2]
[368980253,1751422241421,-460.0,0.00020148,2]
[368980254,1751422241432,-727.6,0.00020148,2]
[368980257,1751422241442,-460.0,0.00020148,2]
[368980259,1751422241452,-587.0,0.00020175,2]
[368980261,1751422241461,-473.75,0.00020177,3]
[368980262,1751422241470,-267.667675,0.00020187,2]
[368980264,1751422241483,-460.0,0.00020198,2]
[368980266,1751422241493,-460.0,0.00020198,2]
[368980268,1751422241503,-843.87,0.00020198,2]
[368980270,1751422241513,-460.0,0.00020198,2]
[368980273,1751422241522,-703.99782774,0.00020383,3]
[368980275,1751422241532,-777.9,0.00020422,2]
[368980277,1751422241542,-888.37,0.00020422,2]
[368980279,1751422241552,-460.0,0.00020422,2]
[368980281,1751422241561,-460.0,0.00020422,2]
[368980283,1751422241571,-1104.28,0.00020422,2]
[368980285,1751422241580,-512.5,0.00020422,2]
[368980287,1751422241589,-460.0,0.00020422,2]
[368980289,1751422241598,-693.01,0.00020422,2]
[368980291,1751422241609,-460.0,0.00020422,2]
[368980293,1751422241618,-460.0,0.00020422,2]
[368980295,1751422241628,-727.6,0.00020422,2]
[368980297,1751422241637,-460.0,0.00020422,2]
[368980299,1751422241646,-460.0,0.00020472,2]
[368980301,1751422241656,-460.0,0.00020472,2]
[368980303,1751422241665,-843.87,0.00020472,2]
[368980305,1751422241674,-206.28913339,0.00020472,2]
[368980307,1751422241684,-372.18106734,0.00020496,2]
[368980309,1751422241693,-277.96,0.00020616,2]
[368980311,1751422241702,-703.99782774,0.00020659,3]
[368980313,1751422241711,-777.9,0.00020696,2]
[368980315,1751422241721,-888.37,0.00020696,2]
[368980317,1751422241731,-460.0,0.00020696,2]
[368980319,1751422241740,-460.0,0.00020696,2]
[368980321,1751422241750,-1104.28,0.00020696,2]
[368980323,1751422241759,-512.5,0.00020696,2]
[368980325,1751422241770,-460.0,0.00020696,2]
[368980327,1751422241779,-693.01,0.00020696,2]
[368980329,1751422241788,-184.89336807,0.00020696,2]
[368980331,1751422241797,-460.0,0.00020696,2]
[368980333,1751422241807,-727.6,0.00020696,2]
[368980335,1751422241816,-460.0,0.00020696,2]
[368980337,1751422241826,-579.37,0.000207,2]
[368980339,1751422241837,-460.0,0.00020746,2]
[368980341,1751422241847,-244.68627334,0.00020746,2]
[368980343,1751422241856,-843.87,0.00020746,2]
[368980345,1751422241865,-703.99782774,0.00020934,4]
[368980347,1751422241874,-777.9,0.0002097,2]
[368980349,1751422241884,-888.37,0.0002097,2]
[368980351,1751422241893,-460.0,0.0002097,2]
[368980353,1751422241902,-460.0,0.0002097,2]
[368980355,1751422241912,-1104.28,0.0002097,2]
[368980357,1751422241923,-512.5,0.0002097,2]
[368980359,1751422241933,-460.0,0.0002097,2]
[368980361,1751422241942,-693.01,0.0002097,2]
[368980363,1751422241954,-460.0,0.0002097,2]
[368980366,1751422241968,-727.6,0.0002097,2]
[368980368,1751422241980,-402.97464604,0.0002097,2]
[368980370,1751422241993,-460.0,0.0002102,2]
[368980373,1751422242004,-843.87,0.0002102,2]
[368980375,1751422242016,-150.0,0.0002104,2]
[368980377,1751422242026,-703.99782774,0.0002121,4]
[368980379,1751422242036,-777.9,0.00021244,2]
[368980381,1751422242049,-888.37,0.00021244,2]
[368980384,1751422242060,-460.0,0.00021244,2]
[368980386,1751422242071,-460.0,0.00021244,2]
[368980388,1751422242083,-1104.28,0.00021244,2]
[368980390,1751422242095,-512.5,0.00021244,2]
[368980393,1751422242106,-460.0,0.00021244,2]
[368980395,1751422242117,-693.01,0.00021244,2]
[368980397,1751422242129,-460.0,0.00021244,2]
[368980399,1751422242139,-727.6,0.00021244,2]
[368980402,1751422242151,-460.0,0.00021294,2]
[368980404,1751422242163,-843.87,0.00021294,2]
[368980406,1751422242175,-505.69477543,0.00021388,2]
[368980408,1751422242188,-703.99782774,0.00021486,5]
[368980411,1751422242200,-777.9,0.00021518,2]
[368980413,1751422242211,-888.37,0.00021518,2]
[368980415,1751422242221,-460.0,0.00021518,2]
[368980417,1751422242233,-460.0,0.00021518,2]
[368980420,1751422242245,-1104.28,0.00021518,2]
[368980422,1751422242257,-512.5,0.00021518,2]
[368980424,1751422242267,-386.83760026,0.00021518,2]
[368980426,1751422242280,-693.01,0.00021518,2]
[368980429,1751422242292,-460.0,0.00021518,2]
[368980431,1751422242304,-727.6,0.00021518,2]
[368980433,1751422242315,-460.0,0.00021568,2]
[368980435,1751422242326,-843.87,0.00021568,2]
[368980437,1751422242336,-372.18106734,0.00021633,2]
[368980439,1751422242346,-703.99782774,0.00021762,5]
[368980442,1751422242359,-777.9,0.00021792,2]
[368980444,1751422242371,-888.37,0.00021792,2]
[368980446,1751422242382,-460.0,0.00021792,2]
[368980448,1751422242395,-460.0,0.00021792,2]
[368980449,1751422242407,-1104.28,0.00021792,2]
[368980450,1751422242419,-512.5,0.00021792,2]
[368980451,1751422242432,-693.01,0.00021792,2]
[368980452,1751422242444,-460.0,0.00021792,2]
[368980453,1751422242455,-727.6,0.00021792,2]
[368980454,1751422242467,-1000.0,0.000218,2]
[368980455,1751422242480,-1000.0,0.000218,3]
[368980456,1751422242493,-1000.0,0.000218,4]
[368980457,1751422242505,-460.0,0.00021842,2]